[Event "26th OIBM 2023"]
[Site "Gmund am Tegernsee"]
[Date "2023.11.04"]
[Round "8.29"]
[White "Cherniaiev, Tykhon"]
[Black "Eichler, Alexander"]
[Result "1-0"]
[ECO "B20"]
[WhiteElo "2278"]
[BlackElo "1860"]
[Annotator "ChessBase"]
[PlyCount "65"]
[EventDate "2023.10.04"]
[EventType "swiss"]
[EventCountry "GER"]
[SourceTitle "playchess.com"]
[Source "ChessBase"]
[SourceQuality "1"]
[TimeControl "40/5400+30:1800+30"]

1. e4 {[%emt 0:00:10]} c5 {[%emt 0:00:03]} 2. b3 {[%emt 0:00:14]} g6 {[%emt 0:00:07]} 3. Bb2 {[%emt 0:00:12]} Nf6 {[%emt 0:00:05]} 4. Nc3 {[%emt 0:01:03]} Nc6 {[%emt 0:00:47]} 5. f4 {[%emt 0:01:05]} d6 {[%emt 0:01:18]} 6. Bb5 {[%emt 0:00:21]} Bg7 {[%emt 0:01:47]} 7. Nf3 {[%emt 0:00:17]} Nxe4 {[%emt 0:05:24]} 8. Qe2 {[%emt 0:01:24]} Nxc3 {[%emt 0:01:08]} 9. Bxc3 {[%emt 0:00:38]} Bxc3 {[%emt 0:01:21]} 10. dxc3 {[%emt 0:00:08]} O-O {[%emt 0:00:19]} 11. O-O-O {[%emt 0:00:32]} Bd7 {[%emt 0:05:49]} 12. Rhe1 {[%emt 0:02:55]} Re8 {[%emt 0:02:43]} 13. Ng5 {[%emt 0:00:44]} h6 {[%emt 0:06:42]} 14. Ne4 {[%emt 0:00:57]} a6 {[%emt 0:03:12]} 15. Bc4 {[%emt 0:04:26]} Qc7 {[%emt 0:07:51]} 16. Qf2 {[%emt 0:06:35]} Bf5 {[%emt 0:07:49]} 17. Qh4 {[%emt 0:05:44]} Kg7 {[%emt 0:03:04]} 18. Nf2 {[%emt 0:04:59]} b5 {[%emt 0:05:40]} 19. Bd5 {[%emt 0:00:25]} a5 {[%emt 0:02:16]} 20. Bxc6 {[%emt 0:18:09]} Qxc6 {[%emt 0:00:01]} 21. g4 {[%emt 0:00:11]} Be6 {[%emt 0:14:37]} 22. f5 {[%emt 0:01:37]} gxf5 {[%emt 0:00:02]} 23. Rg1 {[%emt 0:00:13]} f4 {[%emt 0:03:01]} 24. g5 {[%emt 0:08:54]} h5 {[%emt 0:00:09]} 25. g6 {[%emt 0:01:17]} f6 {[%emt 0:06:16]} 26. Qxh5 {[%emt 0:01:09]} Rh8 {[%emt 0:01:05]} 27. Qe2 {[%emt 0:00:07]} Qd7 {[%emt 0:03:22]} 28. Nd3 {[%emt 0:00:18]} Bf5 {[%emt 0:02:32]} 29. Nxf4 {[%emt 0:00:49]} a4 {[%emt 0:02:49]} 30. Rde1 {[%emt 0:04:16]} axb3 {[%emt 0:06:27]} 31. cxb3 {[%emt 0:00:17]} Rhe8 {[%emt 0:01:54]} 32. Nh5+ {[%emt 0:01:13]} Kg8 {[%emt 0:00:11]} 33. Qd2 {[%emt 0:01:20]} 1-0

[Event "26th OIBM 2023"]
[Site "Gmund am Tegernsee"]
[Date "2023.11.04"]
[Round "8.30"]
[White "Willim, Michael"]
[Black "Weishaeutel, Moritz"]
[Result "1-0"]
[ECO "A57"]
[WhiteElo "2138"]
[BlackElo "2403"]
[Annotator "ChessBase"]
[PlyCount "133"]
[EventDate "2023.10.04"]
[EventType "swiss"]
[EventCountry "GER"]
[SourceTitle "playchess.com"]
[Source "ChessBase"]
[SourceQuality "1"]
[TimeControl "40/5400+30:1800+30"]

1. d4 {[%emt 0:00:06]} Nf6 {[%emt 0:00:18]} 2. c4 {[%emt 0:00:07]} c5 {[%emt 0:00:21]} 3. d5 {[%emt 0:00:11]} b5 {[%emt 0:00:09]} 4. cxb5 {[%emt 0:01:41]} a6 {[%emt 0:00:04]} 5. bxa6 {[%emt 0:00:10]} g6 {[%emt 0:00:06]} 6. Nc3 {[%emt 0:00:13]} Bg7 {[%emt 0:00:05]} 7. e4 {[%emt 0:00:17]} O-O {[%emt 0:00:05]} 8. Bc4 {[%emt 0:03:54]} Bxa6 {[%emt 0:02:37]} 9. Bxa6 {[%emt 0:00:31]} Nxa6 {[%emt 0:00:05]} 10. Nf3 {[%emt 0:00:08]} d6 {[%emt 0:00:46]} 11. O-O {[%emt 0:00:31]} Qb6 {[%emt 0:03:00]} 12. Rb1 {[%emt 0:01:08]} Nc7 {[%emt 0:08:50]} 13. a4 {[%emt 0:07:43]} Rfb8 {[%emt 0:05:23]} 14. b3 {[%emt 0:00:19]} Nd7 {[%emt 0:10:03]} 15. Qc2 {[%emt 0:04:02]} Bxc3 {[%emt 0:18:19]} 16. Qxc3 {[%emt 0:00:14]} Qb4 {[%emt 0:01:45]} 17. Qe3 {[%emt 0:09:39]} c4 {[%emt 0:05:08]} 18. Bd2 {[%emt 0:02:28]} Qa3 {[%emt 0:03:35]} 19. Nd4 {[%emt 0:08:01]} cxb3 {[%emt 0:02:34]} 20. Nc6 {[%emt 0:01:47]} Re8 {[%emt 0:00:07]} 21. Rxb3 {[%emt 0:04:31]} Qxa4 {[%emt 0:00:08]} 22. Rb7 {[%emt 0:00:32]} Rac8 {[%emt 0:00:30]} 23. Ba5 {[%emt 0:04:11]} Ne5 {[%emt 0:01:16]} 24. Bxc7 {[%emt 0:05:58]} Nxc6 {[%emt 0:00:06]} 25. dxc6 {[%emt 0:00:10]} Qxc6 {[%emt 0:00:03]} 26. Qb6 {[%emt 0:02:30]} Qxe4 {[%emt 0:00:04]} 27. Rb8 {[%emt 0:09:03]} Rxb8 {[%emt 0:04:35]} 28. Bxb8 {[%emt 0:02:03]} Rc8 {[%emt 0:00:03]} 29. Ba7 {[%emt 0:02:21]} Rc2 {[%emt 0:02:49]} 30. Qe3 {[%emt 0:01:06]} Qb7 {[%emt 0:00:04]} 31. Qd3 {[%emt 0:01:35]} Rb2 {[%emt 0:00:56]} 32. Be3 {[%emt 0:02:29]} Rb3 {[%emt 0:00:07]} 33. Qd4 {[%emt 0:00:56]} Rb1 {[%emt 0:01:42]} 34. Qd3 {[%emt 0:03:12]} Rxf1+ {[%emt 0:00:11]} 35. Qxf1 {[%emt 0:00:14]} Qe4 {[%emt 0:00:12]} 36. h3 {[%emt 0:01:29]} h5 {[%emt 0:00:16]} 37. Qa1 {[%emt 0:02:12]} e5 {[%emt 0:02:34]} 38. Qa5 {[%emt 0:02:46]} Kg7 {[%emt 0:00:37]} 39. Qd8 {[%emt 0:01:26]} Qc6 {[%emt 0:02:19]} 40. h4 {[%emt 0:02:29]} d5 {[%emt 0:01:46]} 41. Qe7 {[%emt 0:37:19]} Qc3 {[%emt 0:30:04]} 42. g3 {[%emt 0:04:30]} Qa1+ {[%emt 0:01:07]} 43. Kg2 {[%emt 0:00:34]} Qc3 {[%emt 0:00:04]} 44. Qd8 {[%emt 0:01:30]} Qc6 {[%emt 0:00:51]} 45. Bh6+ {[%emt 0:01:18]} Kh7 {[%emt 0:00:03]} 46. Qf8 {[%emt 0:00:00]} d4+ {[%emt 0:00:00]} 47. Kg1 {[%emt 0:00:00]} Qf6 {[%emt 0:00:00]} 48. Bg5 {[%emt 0:00:00]} Qf5 {[%emt 0:00:00]} 49. Qh6+ {[%emt 0:00:00]} Kg8 {[%emt 0:00:00]} 50. Be7 {[%emt 0:00:00]} Qb1+ {[%emt 0:00:00]} 51. Kh2 {[%emt 0:00:00]} Qf5 {[%emt 0:00:00]} 52. Qd2 {[%emt 0:00:00]} Kg7 {[%emt 0:00:00]} 53. Qe2 {[%emt 0:00:00]} f6 {[%emt 0:00:00]} 54. Kg2 {[%emt 0:00:00]} Qd7 {[%emt 0:00:00]} 55. Ba3 {[%emt 0:00:00]} d3 {[%emt 0:00:00]} 56. Qd2 {[%emt 0:00:00]} Qd5+ {[%emt 0:00:00]} 57. Kg1 {[%emt 0:00:00]} f5 {[%emt 0:00:00]} 58. Bc1 {[%emt 0:00:00]} f4 {[%emt 0:00:00]} 59. gxf4 {[%emt 0:00:00]} Qf3 {[%emt 0:00:00]} 60. Qe3 {[%emt 0:00:00]} Qg4+ {[%emt 0:00:00]} 61. Kf1 {[%emt 0:00:00]} Qxh4 {[%emt 0:00:00]} 62. Qxe5+ {[%emt 0:00:00]} Kh7 {[%emt 0:00:00]} 63. Qc7+ {[%emt 0:00:00]} Kg8 {[%emt 0:00:00]} 64. Qc8+ {[%emt 0:00:00]} Kf7 {[%emt 0:00:00]} 65. Qd7+ {[%emt 0:00:00]} Kg8 {[%emt 0:00:00]} 66. Qe8+ {[%emt 0:00:00]} Kh7 {[%emt 0:00:00]} 67. Qf7+ {[%emt 0:00:00]} 1-0

[Event "26th OIBM 2023"]
[Site "Gmund am Tegernsee"]
[Date "2023.11.04"]
[Round "8.31"]
[White "Dolzhykova, Kateryna"]
[Black "Mohylnyi, Stepan"]
[Result "1/2-1/2"]
[ECO "C00"]
[WhiteElo "2336"]
[BlackElo "2120"]
[Annotator "ChessBase"]
[PlyCount "97"]
[EventDate "2023.10.04"]
[EventType "swiss"]
[EventCountry "GER"]
[SourceTitle "playchess.com"]
[Source "ChessBase"]
[SourceQuality "1"]
[TimeControl "40/5400+30:1800+30"]

1. e4 {[%emt 0:00:02]} e6 {[%emt 0:00:16]} 2. d3 {[%emt 0:00:06]} d5 {[%emt 0:00:04]} 3. Nd2 {[%emt 0:00:06]} c5 {[%emt 0:00:03]} 4. Ngf3 {[%emt 0:00:07]} Nf6 {[%emt 0:00:13]} 5. g3 {[%emt 0:00:27]} Nc6 {[%emt 0:00:09]} 6. Bg2 {[%emt 0:00:14]} Be7 {[%emt 0:00:09]} 7. O-O {[%emt 0:00:18]} O-O {[%emt 0:00:23]} 8. Re1 {[%emt 0:00:46]} b5 {[%emt 0:00:14]} 9. exd5 {[%emt 0:03:06]} exd5 {[%emt 0:01:03]} 10. a4 {[%emt 0:00:42]} b4 {[%emt 0:05:30]} 11. d4 {[%emt 0:00:04]} a5 {[%emt 0:14:37]} 12. dxc5 {[%emt 0:03:32]} Bxc5 {[%emt 0:00:09]} 13. Nb3 {[%emt 0:00:05]} Bb6 {[%emt 0:00:17]} 14. Nbd4 {[%emt 0:04:31]} Nxd4 {[%emt 0:11:13]} 15. Nxd4 {[%emt 0:00:07]} Bb7 {[%emt 0:11:55]} 16. Be3 {[%emt 0:02:28]} Ne4 {[%emt 0:08:38]} 17. Qg4 {[%emt 0:06:35]} Qf6 {[%emt 0:09:13]} 18. Rad1 {[%emt 0:00:21]} Bc8 {[%emt 0:07:19]} 19. Qh5 {[%emt 0:01:13]} Bb7 {[%emt 0:01:25]} 20. h4 {[%emt 0:15:04]} Rfe8 {[%emt 0:03:53]} 21. Kh2 {[%emt 0:04:06]} Rac8 {[%emt 0:05:46]} 22. f3 {[%emt 0:14:05]} Nd6 {[%emt 0:02:12]} 23. Bg5 {[%emt 0:08:31]} Qg6 {[%emt 0:00:28]} 24. Qxg6 {[%emt 0:00:54]} hxg6 {[%emt 0:00:17]} 25. Rxe8+ {[%emt 0:02:06]} Rxe8 {[%emt 0:00:24]} 26. b3 {[%emt 0:05:04]} Nf5 {[%emt 0:07:01]} 27. Nxf5 {[%emt 0:02:19]} gxf5 {[%emt 0:00:02]} 28. Rd2 {[%emt 0:00:01]} Re1 {[%emt 0:04:09]} 29. Bf4 {[%emt 0:02:07]} f6 {[%emt 0:00:49]} 30. g4 {[%emt 0:00:46]} fxg4 {[%emt 0:01:36]} 31. fxg4 {[%emt 0:00:44]} Be3 {[%emt 0:00:09]} 32. Bxe3 {[%emt 0:01:14]} Rxe3 {[%emt 0:00:02]} 33. Bxd5+ {[%emt 0:01:16]} Bxd5 {[%emt 0:00:05]} 34. Rxd5 {[%emt 0:00:03]} Re2+ {[%emt 0:00:06]} 35. Kg3 {[%emt 0:00:41]} Rxc2 {[%emt 0:00:06]} 36. Rxa5 {[%emt 0:02:10]} Rc3+ {[%emt 0:00:31]} 37. Kf4 {[%emt 0:00:05]} Rxb3 {[%emt 0:00:11]} 38. Kf5 {[%emt 0:01:20]} Kh7 {[%emt 0:00:55]} 39. Rb5 {[%emt 0:01:04]} Rb1 {[%emt 0:00:48]} 40. Ke6 {[%emt 0:03:20]} Kg6 {[%emt 0:01:39]} 41. h5+ {[%emt 0:35:56]} Kh7 {[%emt 0:32:12]} 42. Kf7 {[%emt 0:00:51]} b3 {[%emt 0:00:00]} 43. h6 {[%emt 0:00:00]} g6 {[%emt 0:00:00]} 44. Kxf6 {[%emt 0:00:00]} Kxh6 {[%emt 0:00:00]} 45. Rb8 {[%emt 0:00:00]} Rf1+ {[%emt 0:00:00]} 46. Ke5 {[%emt 0:00:00]} Ra1 {[%emt 0:00:00]} 47. Kf6 {[%emt 0:00:00]} Rf1+ {[%emt 0:00:00]} 48. Ke5 {[%emt 0:00:00]} Ra1 {[%emt 0:00:00]} 49. Kf6 {[%emt 0:16:23]} 1/2-1/2

[Event "26th OIBM 2023"]
[Site "Gmund am Tegernsee"]
[Date "2023.11.04"]
[Round "8.32"]
[White "Kotyk, Michael"]
[Black "Zude, Arno"]
[Result "0-1"]
[ECO "C29"]
[WhiteElo "2127"]
[BlackElo "2333"]
[Annotator "ChessBase"]
[PlyCount "98"]
[EventDate "2023.10.04"]
[EventType "swiss"]
[EventCountry "GER"]
[SourceTitle "playchess.com"]
[Source "ChessBase"]
[SourceQuality "1"]
[TimeControl "40/5400+30:1800+30"]

1. e4 {[%emt 0:00:01]} e5 {[%emt 0:00:18]} 2. Nc3 {[%emt 0:00:21]} Nf6 {[%emt 0:00:09]} 3. f4 {[%emt 0:00:04]} d5 {[%emt 0:00:19]} 4. fxe5 {[%emt 0:00:05]} Nxe4 {[%emt 0:00:11]} 5. Qf3 {[%emt 0:00:04]} Nxc3 {[%emt 0:05:03]} 6. bxc3 {[%emt 0:00:14]} c5 {[%emt 0:05:00]} 7. Bb5+ {[%emt 0:03:19]} Nc6 {[%emt 0:01:32]} 8. c4 {[%emt 0:09:22]} Be6 {[%emt 0:06:00]} 9. Ne2 {[%emt 0:00:07]} Qh4+ {[%emt 0:19:19]} 10. g3 {[%emt 0:00:36]} Qe4 {[%emt 0:00:14]} 11. Qxe4 {[%emt 0:00:59]} dxe4 {[%emt 0:00:02]} 12. Nc3 {[%emt 0:05:50]} Bd7 {[%emt 0:16:44]} 13. O-O {[%emt 0:06:43]} Nxe5 {[%emt 0:05:19]} 14. Bxd7+ {[%emt 0:00:57]} Kxd7 {[%emt 0:00:34]} 15. Nxe4 {[%emt 0:00:25]} f6 {[%emt 0:01:04]} 16. d3 {[%emt 0:00:20]} Kc6 {[%emt 0:00:39]} 17. Bb2 {[%emt 0:16:40]} Re8 {[%emt 0:01:45]} 18. Rae1 {[%emt 0:04:14]} h5 {[%emt 0:05:06]} 19. Kg2 {[%emt 0:03:12]} Nf7 {[%emt 0:06:34]} 20. Rf2 {[%emt 0:19:18]} Bd6 {[%emt 0:02:16]} 21. Rfe2 {[%emt 0:02:32]} Be5 {[%emt 0:10:39]} 22. c3 {[%emt 0:06:18]} Rd8 {[%emt 0:03:44]} 23. Rd2 {[%emt 0:01:36]} Bc7 {[%emt 0:00:44]} 24. Nxc5 {[%emt 0:02:07]} Ne5 {[%emt 0:01:12]} 25. d4 {[%emt 0:04:30]} Nxc4 {[%emt 0:00:33]} 26. Rde2 {[%emt 0:02:00]} Bd6 {[%emt 0:00:23]} 27. Ne6 {[%emt 0:01:07]} Rd7 {[%emt 0:01:12]} 28. Bc1 {[%emt 0:00:01]} b5 {[%emt 0:02:45]} 29. Bf4 {[%emt 0:00:11]} Ba3 {[%emt 0:01:05]} 30. d5+ {[%emt 0:02:30]} Kb6 {[%emt 0:00:49]} 31. h4 {[%emt 0:04:36]} Rc8 {[%emt 0:00:44]} 32. Be3+ {[%emt 0:02:03]} Nxe3+ {[%emt 0:00:41]} 33. Rxe3 {[%emt 0:00:01]} Bd6 {[%emt 0:00:19]} 34. Rd3 {[%emt 0:01:44]} Rc4 {[%emt 0:00:22]} 35. Nd4 {[%emt 0:01:54]} Be5 {[%emt 0:00:46]} 36. Nb3 {[%emt 0:01:47]} a5 {[%emt 0:01:46]} 37. Rc1 {[%emt 0:00:20]} Rdc7 {[%emt 0:01:01]} 38. d6 {[%emt 0:00:43]} Rd7 {[%emt 0:00:10]} 39. Nd2 {[%emt 0:00:29]} Rc6 {[%emt 0:01:51]} 40. c4 {[%emt 0:00:21]} Rdxd6 {[%emt 0:00:43]} 41. Rxd6 {[%emt 0:04:40]} Bxd6 {[%emt 0:00:12]} 42. Ne4 {[%emt 0:07:58]} Ba3 {[%emt 0:02:31]} 43. Rc3 {[%emt 0:00:50]} Bb4 {[%emt 0:01:19]} 44. c5+ {[%emt 0:01:06]} Rxc5 {[%emt 0:01:40]} 45. Nxc5 {[%emt 0:00:42]} Bxc3 {[%emt 0:27:41]} 46. Ne6 {[%emt 0:00:09]} b4 {[%emt 0:00:00]} 47. Kf3 {[%emt 0:00:04]} a4 {[%emt 0:00:00]} 48. Ke2 {[%emt 0:00:05]} b3 {[%emt 0:00:00]} 49. axb3 {[%emt 0:00:17]} a3 {[%emt 0:00:00]} 0-1

[Event "26th OIBM 2023"]
[Site "Gmund am Tegernsee"]
[Date "2023.11.04"]
[Round "8.33"]
[White "Gohla, Ulf"]
[Black "Chassard, Cedric"]
[Result "1/2-1/2"]
[ECO "E05"]
[WhiteElo "2102"]
[BlackElo "2326"]
[Annotator "ChessBase"]
[PlyCount "42"]
[EventDate "2023.10.04"]
[EventType "swiss"]
[EventCountry "GER"]
[SourceTitle "playchess.com"]
[Source "ChessBase"]
[SourceQuality "1"]
[TimeControl "40/5400+30:1800+30"]

1. d4 {[%emt 0:00:01]} Nf6 {[%emt 0:00:09]} 2. c4 {[%emt 0:00:01]} e6 {[%emt 0:00:08]} 3. Nf3 {[%emt 0:00:05]} d5 {[%emt 0:00:06]} 4. g3 {[%emt 0:00:10]} Be7 {[%emt 0:00:28]} 5. Bg2 {[%emt 0:00:02]} O-O {[%emt 0:00:07]} 6. O-O {[%emt 0:00:06]} dxc4 {[%emt 0:00:03]} 7. Ne5 {[%emt 0:03:28]} Nc6 {[%emt 0:02:28]} 8. Bxc6 {[%emt 0:06:19]} bxc6 {[%emt 0:02:16]} 9. Nxc6 {[%emt 0:00:03]} Qe8 {[%emt 0:00:43]} 10. Nxe7+ {[%emt 0:00:05]} Qxe7 {[%emt 0:00:07]} 11. Qa4 {[%emt 0:00:49]} e5 {[%emt 0:01:37]} 12. dxe5 {[%emt 0:05:52]} Qxe5 {[%emt 0:00:13]} 13. Qxc4 {[%emt 0:00:06]} Be6 {[%emt 0:01:09]} 14. Qc2 {[%emt 0:01:22]} Bf5 {[%emt 0:03:46]} 15. Qc4 {[%emt 0:00:53]} Be6 {[%emt 0:08:10]} 16. Qc2 {[%emt 0:00:06]} Rfe8 {[%emt 0:24:45]} 17. Nc3 {[%emt 0:16:32]} Qh5 {[%emt 0:06:12]} 18. f3 {[%emt 0:05:28]} Bh3 {[%emt 0:06:00]} 19. Rf2 {[%emt 0:01:15]} Rad8 {[%emt 0:00:38]} 20. e4 {[%emt 0:12:31]} Nd7 {[%emt 0:14:40]} 21. Bf4 {[%emt 0:07:23]} c6 {[%emt 0:05:22]} 1/2-1/2

[Event "26th OIBM 2023"]
[Site "Gmund am Tegernsee"]
[Date "2023.11.04"]
[Round "8.34"]
[White "Kulon, Klaudia"]
[Black "Butenandt, Svenja"]
[Result "1/2-1/2"]
[ECO "B12"]
[WhiteElo "2319"]
[BlackElo "2082"]
[Annotator "ChessBase"]
[PlyCount "85"]
[EventDate "2023.10.04"]
[EventType "swiss"]
[EventCountry "GER"]
[SourceTitle "playchess.com"]
[Source "ChessBase"]
[SourceQuality "1"]
[TimeControl "40/5400+30:1800+30"]

1. e4 {[%emt 0:00:03]} c6 {[%emt 0:00:06]} 2. d4 {[%emt 0:00:06]} d5 {[%emt 0:00:04]} 3. e5 {[%emt 0:00:07]} Bf5 {[%emt 0:00:05]} 4. h4 {[%emt 0:00:05]} h5 {[%emt 0:00:15]} 5. Bd3 {[%emt 0:00:17]} Bxd3 {[%emt 0:00:09]} 6. Qxd3 {[%emt 0:00:05]} Qa5+ {[%emt 0:00:14]} 7. Nd2 {[%emt 0:00:33]} e6 {[%emt 0:00:18]} 8. Ngf3 {[%emt 0:00:49]} Nh6 {[%emt 0:00:49]} 9. O-O {[%emt 0:01:19]} Nf5 {[%emt 0:00:43]} 10. c4 {[%emt 0:01:26]} Be7 {[%emt 0:01:11]} 11. g3 {[%emt 0:04:53]} O-O {[%emt 0:01:16]} 12. b3 {[%emt 0:01:34]} Rd8 {[%emt 0:02:06]} 13. Bb2 {[%emt 0:05:42]} c5 {[%emt 0:03:42]} 14. cxd5 {[%emt 0:13:03]} Rxd5 {[%emt 0:01:42]} 15. Nc4 {[%emt 0:00:09]} Qa6 {[%emt 0:10:24]} 16. Qe4 {[%emt 0:00:27]} cxd4 {[%emt 0:05:29]} 17. Nxd4 {[%emt 0:00:22]} Nxd4 {[%emt 0:04:24]} 18. Bxd4 {[%emt 0:00:02]} Nc6 {[%emt 0:01:00]} 19. Bb2 {[%emt 0:00:43]} Rad8 {[%emt 0:08:06]} 20. a4 {[%emt 0:01:48]} Nd4 {[%emt 0:08:03]} 21. Bxd4 {[%emt 0:02:33]} Rxd4 {[%emt 0:00:06]} 22. Qe2 {[%emt 0:02:24]} Rg4 {[%emt 0:09:35]} 23. Rad1 {[%emt 0:05:38]} Bxh4 {[%emt 0:11:04]} 24. Rd6 {[%emt 0:02:01]} Rxd6 {[%emt 0:02:47]} 25. exd6 {[%emt 0:00:03]} Bd8 {[%emt 0:00:35]} 26. Rd1 {[%emt 0:01:01]} Qc6 {[%emt 0:03:57]} 27. Ne5 {[%emt 0:05:05]} Qe4 {[%emt 0:00:53]} 28. Qb5 {[%emt 0:00:27]} Rg5 {[%emt 0:06:57]} 29. Qe8+ {[%emt 0:04:33]} Kh7 {[%emt 0:01:40]} 30. Qxd8 {[%emt 0:05:24]} Qxe5 {[%emt 0:00:33]} 31. Kf1 {[%emt 0:03:26]} Rxg3 {[%emt 0:06:04]} 32. fxg3 {[%emt 0:01:27]} Qxg3 {[%emt 0:00:02]} 33. Ke2 {[%emt 0:01:26]} Qe5+ {[%emt 0:05:07]} 34. Kd3 {[%emt 0:01:17]} Qd5+ {[%emt 0:01:18]} 35. Kc2 {[%emt 0:00:08]} Qc5+ {[%emt 0:00:26]} 36. Kb2 {[%emt 0:01:28]} Qe5+ {[%emt 0:00:10]} 37. Kb1 {[%emt 0:02:57]} Qf5+ {[%emt 0:00:27]} 38. Kc1 {[%emt 0:01:33]} Qc5+ {[%emt 0:00:07]} 39. Kb2 {[%emt 0:33:36]} Qe5+ {[%emt 0:00:10]} 40. Kb1 {[%emt 0:00:00]} Qf5+ {[%emt 0:00:08]} 41. Kc1 {[%emt 0:05:08]} Qc5+ {[%emt 0:30:13]} 42. Kd2 {[%emt 0:00:26]} Qd4+ {[%emt 0:00:28]} 43. Kc2 {[%emt 0:00:04]} 1/2-1/2

[Event "26th OIBM 2023"]
[Site "Gmund am Tegernsee"]
[Date "2023.11.04"]
[Round "8.35"]
[White "Ernst, Robert"]
[Black "Lavrencic, Matic"]
[Result "1/2-1/2"]
[ECO "E48"]
[WhiteElo "2093"]
[BlackElo "2319"]
[Annotator "ChessBase"]
[PlyCount "68"]
[EventDate "2023.10.04"]
[EventType "swiss"]
[EventCountry "GER"]
[SourceTitle "playchess.com"]
[Source "ChessBase"]
[SourceQuality "1"]
[TimeControl "40/5400+30:1800+30"]

1. d4 {[%emt 0:00:03]} Nf6 {[%emt 0:00:04]} 2. c4 {[%emt 0:00:14]} e6 {[%emt 0:00:04]} 3. Nc3 {[%emt 0:00:11]} Bb4 {[%emt 0:00:05]} 4. e3 {[%emt 0:00:10]} O-O {[%emt 0:00:05]} 5. Bd3 {[%emt 0:00:09]} d5 {[%emt 0:00:05]} 6. cxd5 {[%emt 0:00:10]} exd5 {[%emt 0:00:07]} 7. Nge2 {[%emt 0:00:13]} Re8 {[%emt 0:01:20]} 8. O-O {[%emt 0:05:04]} c6 {[%emt 0:04:50]} 9. f3 {[%emt 0:00:30]} c5 {[%emt 0:26:34]} 10. a3 {[%emt 0:00:07]} cxd4 {[%emt 0:00:08]} 11. axb4 {[%emt 0:00:09]} dxc3 {[%emt 0:00:04]} 12. Nxc3 {[%emt 0:00:12]} Nc6 {[%emt 0:00:45]} 13. b5 {[%emt 0:00:09]} Ne5 {[%emt 0:00:24]} 14. Be2 {[%emt 0:03:33]} b6 {[%emt 0:04:23]} 15. Qd4 {[%emt 0:06:42]} Bb7 {[%emt 0:00:42]} 16. Rd1 {[%emt 0:13:35]} Qe7 {[%emt 0:04:47]} 17. Bd2 {[%emt 0:06:51]} Ned7 {[%emt 0:00:53]} 18. Ra3 {[%emt 0:02:45]} Nc5 {[%emt 0:05:15]} 19. Rda1 {[%emt 0:03:31]} Qd6 {[%emt 0:07:00]} 20. Qb4 {[%emt 0:07:03]} Qb8 {[%emt 0:01:59]} 21. Bf1 {[%emt 0:09:19]} Nfd7 {[%emt 0:01:46]} 22. Nd1 {[%emt 0:01:17]} Ne6 {[%emt 0:06:37]} 23. Be1 {[%emt 0:06:11]} Ndc5 {[%emt 0:02:35]} 24. Bg3 {[%emt 0:00:32]} Qd8 {[%emt 0:00:06]} 25. Rxa7 {[%emt 0:02:17]} Rxa7 {[%emt 0:00:27]} 26. Rxa7 {[%emt 0:00:02]} d4 {[%emt 0:00:31]} 27. exd4 {[%emt 0:13:33]} Nxd4 {[%emt 0:00:45]} 28. Nc3 {[%emt 0:00:18]} h5 {[%emt 0:11:46]} 29. Bf2 {[%emt 0:01:52]} Nxf3+ {[%emt 0:01:07]} 30. gxf3 {[%emt 0:00:22]} Qg5+ {[%emt 0:00:39]} 31. Bg3 {[%emt 0:00:27]} Qe3+ {[%emt 0:00:37]} 32. Bf2 {[%emt 0:00:05]} Qg5+ {[%emt 0:01:14]} 33. Bg3 {[%emt 0:00:01]} Qe3+ {[%emt 0:00:51]} 34. Bf2 {[%emt 0:00:02]} Qg5+ {[%emt 0:00:07]} 1/2-1/2